Cogmind - Beta 13 @@@ ROGUE MODE // 2024.04.02 @ 05:26:06 Player: TurnLeft25 Result: Destroyed by D-53 Grenadier with Mini Grenade Launcher Performance ------------- Evolutions (0) 0 Regions Visited (2) 400 Robots Destroyed (13) 65 Value Destroyed (254) 254 Prototype IDs (0) 0 Alien Tech Used (0) 0 Bonus (0) 0 TOTAL SCORE: 719 Bonus ------- None Cogmind --------- Core Integrity 0/250 Matter 175/300 Energy 100/100 System Corruption 0% Temperature Cool (0) Movement Core (100) Ox1 Location -10/Mines Parts ------- > --- POWER (1) -------- (None) > --- PROPULSION (2) --- (None) > --- UTILITY (2) ------ Small Storage Unit > --- WEAPON (2) ------- (None) > --- INVENTORY (8) ---- Light Ion Engine Peak State ------------ > --- POWER ------------ Ion Engine > --- PROPULSION ------- Aluminum Leg Aluminum Leg > --- UTILITY ---------- Small Storage Unit Terrain Scanner > --- WEAPON ----------- EM Pulse Gun Grenade Launcher > --- INVENTORY -------- EM Pulse Gun [Rating: 7] Favorites ----------- Power Ion Engine Engine Ion Engine Propulsion Aluminum Leg Leg Aluminum Leg Utility Small Storage Unit Device Terrain Scanner Storage Small Storage Unit Weapon EM Pulse Gun Energy Gun EM Pulse Gun Ballistic Gun Light Assault Rifle Launcher Grenade Launcher Build | -11 -10 -10 ------- Run | Yrd Mat Min Slots Evolved . | . . . Power . | . . . Propulsion . | . . . Utility . | . . . Weapon . | . . . Parts Attached 12 | 6 3 3 Power 1 | 1 . . Engine 1 | 1 . . Core . | . . . Reactor . | . . . Propulsion 2 | 2 . . Treads . | . . . Leg 2 | 2 . . Wheel . | . . . Hover . | . . . Flight . | . . . Utility 2 | 1 1 . Device 1 | . 1 . Storage 1 | 1 . . Processor . | . . . Hackware . | . . . Protection . | . . . Artifact . | . . . Weapon 7 | 2 2 3 Energy Gun 3 | 2 . 1 Energy Cannon . | . . . Ballistic Gun 2 | . . 2 Ballistic Cannon . | . . . Launcher 2 | . 2 . Special Weapon . | . . . Impact Weapon . | . . . Slashing Weapon . | . . . Piercing Weapon . | . . . Special Melee Weapon . | . . . Unidentified Prototypes . | . . . Parts Lost 9 | . . 9 Power 1 | . . 1 Propulsion 2 | . . 2 Utility 1 | . . 1 Weapon 5 | . . 5 Highest Loss Streak 8 | . . 8 To Critical Strikes . | . . . Average Slot Usage (%) 92 | . 89 95 Engine 14 | . 14 14 Leg 27 | . 28 26 Device 9 | . 6 12 Storage 14 | . 14 14 Energy Gun 14 | . 15 13 Launcher 11 | . 10 12 Naked Turns . | . . . Heaviest Build 16 | 14 16 16 Greatest Support 20 | 20 20 20 Greatest Overweight (x) 3 | . . 3 Average Overweight (x) . | . . . Largest Inventory Capacity 8 | 8 8 8 Average Capacity 7 | 6 8 8 Most Carried 2 | 2 2 2 Average Carried 1 | . . 1 Final Capacity 8 | 8 8 8 Final Carried 1 | . 1 1 Class Distribution -------------------- 100% | Mutant Dominant Class ---------------- Mutant | -10/Materials Mutant | -10/Mines Resources | -11 -10 -10 ----------- Run | Yrd Mat Min Matter Collected 382 | 226 136 20 Remotely . | . . . Salvage Created 296 | . 216 80 Parts 22 | . 14 8 Haulers Intercepted . | . . . Recyclers Shooed 1 | . 1 . Parts Field Recycled . | . . . Retrieved Matter . | . . . Parts Self-Destructed . | . . . Prevented . | . . . Kills | -11 -10 -10 ------- Run | Yrd Mat Min Combat Hostiles Destroyed 16 | . 4 12 Guns 3 | . 2 1 AOE 13 | . 2 11 Classes Destroyed 7 | . 4 3 Worker 1 | . 1 . Builder 1 | . 1 . Tunneler 2 | . . 2 Watcher 2 | . 2 . Swarmer 3 | . . 3 Grunt 4 | . 4 . Assembled 9 | . . 9 Best Kill Streak 12 | . 3 12 Combat Bots Only 12 | . 2 12 Max Kills in Single Turn 4 | . 2 4 Gunslinging . | . . . Exploded 4 | . 2 4 Melee . | . . . Uniques/NPCs Destroyed . | . . . Combat | -11 -10 -10 -------- Run | Yrd Mat Min Hostile Shots Fired 47 | . 17 30 Missed 10 | . 6 4 Damage Taken 840 | . 201 639 Core 275 | . 81 194 Absorbed by Shields . | . . . Regen/Repaired (Parts) 50 | . 50 . Core Remaining (%) 100 | 100 . . Volleys Fired 40 | . 25 15 Largest 2 | . 2 2 Hottest 70 | . 70 70 Shots Fired 65 | . 36 29 Gun 41 | . 25 16 Cannon . | . . . Launcher 24 | . 11 13 Special . | . . . Kinetic 2 | . . 2 Thermal . | . . . Explosive 24 | . 11 13 Electromagnetic 39 | . 25 14 Robot Hit Streak 3 | . 3 3 Robot Miss Streak 4 | . 4 3 Penetration Max . | . . . Secondary Targets . | . . . Shots Hit Robots 30 | . 15 15 Core Hits 44 | . 16 28 Critical Kills . | . . . Critical Parts Destroyed . | . . . Critical Strikes . | . . . Melee Attacks . | . . . Impact . | . . . Slashing . | . . . Piercing . | . . . Sneak Attacks . | . . . Combat Hostiles . | . . . Follow-up Attacks . | . . . Damage Inflicted 1565 | . 742 823 Guns 344 | . 232 112 Cannons . | . . . Explosions 1215 | . 505 710 Melee . | . . . Ramming 6 | . 5 1 Kinetic 10 | . . 10 Thermal 158 | . 95 63 Explosive 1057 | . 410 647 Electromagnetic 334 | . 232 102 Impact . | . . . Slashing . | . . . Piercing . | . . . Highest Corruption . | . . . Average Corruption . | . . . Corruption Purged . | . . . Corruption Blocked . | . . . Overload Shots . | . . . Overflow Damage 35 | . 20 15 Projectiles . | . . . Explosions 35 | . 20 15 Melee . | . . . Knockbacks . | . . . Impact . | . . . Kinetic . | . . . Secondary . | . . . Self-Inflicted Damage 54 | . 43 11 Shots 4 | . 2 2 Rammed 2 | . . 2 Targets Rammed 3 | . 1 2 Kicked 1 | . 1 . Crushed . | . . . Highest Temperature 72 | . 72 47 Average Temperature 23 | . 28 17 Received Heat Transfer 113 | . 93 20 Siege Activations . | . . . Robots Corrupted . | . . . Combat Hostiles . | . . . Parts Fried . | . . . Impact Corruptions . | . . . Robots Melted . | . . . Combat Hostiles . | . . . Parts Melted . | . . . Heat Transferred 150 | . 50 100 Parts Sabotaged . | . . . Parts Stolen . | . . . Parts Stripped . | . . . Power Chain Reactions 2 | . 1 1 Alert | -11 -10 -10 ------- Run | Yrd Mat Min Peak Influence 219 | . 205 219 Initial 79 | . . 79 Average 124 | . 114 177 Maximum Alert Level 1 | . 1 1 Low Security (%) 82 | 100 67 95 Level 1 17 | . 32 4 Level 2 . | . . . Level 3 . | . . . Level 4 . | . . . Level 5 . | . . . High Security . | . . . Max Security . | . . . Squads Dispatched . | . . . Investigation . | . . . Extermination . | . . . Reinforcement . | . . . Assault . | . . . Garrison . | . . . Intercept . | . . . Searches Triggered . | . . . Construction Impeded . | . . . Haulers Reinforced . | . . . Active Scanning Responses . | . . . Cargo Convoy Interrupts . | . . . Stealth | -11 -10 -10 --------- Run | Yrd Mat Min Distress Signals 1 | . 1 . Communications Jammed . | . . . Distress Signals . | . . . Times Spotted 19 | . 6 13 Peak Tracking Total 6 | . 3 6 Tactical Retreats . | . . . Traps | -11 -10 -10 ------- Run | Yrd Mat Min Traps Triggered . | . . . Indirectly . | . . . Trap Hack Attempts . | . . . Triggered . | . . . Disarmed . | . . . Reprogrammed . | . . . Reused . | . . . Traps Extracted . | . . . Installed . | . . . Triggered . | . . . Machines | -11 -10 -10 ---------- Run | Yrd Mat Min Machines Disabled 1 | . 1 . Max in Single Turn 1 | . 1 . Machines Repaired . | . . . Machines Dismantled . | . . . Machines Sabotaged . | . . . Overloaded Fab Kills . | . . . Hacking | -11 -10 -10 --------- Run | Yrd Mat Min Machines Accessed 2 | . 2 . Terminals 1 | . 1 . Fabricators . | . . . Repair Stations 1 | . 1 . Recycling Units . | . . . Scanalyzers . | . . . Garrison Access . | . . . Total Hacks 8 | . 8 . Successful 4 | . 4 . Failed 4 | . 4 . Catastrophic 1 | . 1 . Database Lockouts . | . . . Manual . | . . . Terminals 5 | . 5 . Fabricators . | . . . Repair Stations 3 | . 3 . Recycling Units . | . . . Scanalyzers . | . . . Garrison Access . | . . . Terminal Hacks 2 | . 2 . Record 2 | . 2 . Fabricator Hacks . | . . . Repair Station Hacks 2 | . 2 . Scan Component 1 | . 1 . Repair 1 | . 1 . Recycling Unit Hacks . | . . . Scanalyzer . | . . . Garrison Access Hacks . | . . . Unauthorized Hacks . | . . . Terminals . | . . . Fabricators . | . . . Repair Stations . | . . . Recycling Units . | . . . Scanalyzers . | . . . Garrison Access . | . . . Data Cores Recovered . | . . . Used . | . . . Hacking Detections 2 | . 2 . Full Trace Events 1 | . 1 . Feedback Events . | . . . Feedback Blocked . | . . . Robot Schematics Acquired . | . . . Robots Built . | . . . Authchips . | . . . Time . | . . . Total Robot Build Rating . | . . . Part Schematics Acquired . | . . . Parts Built . | . . . Authchips . | . . . Time . | . . . Total Part Build Rating . | . . . Parts Repaired 1 | . 1 . Time 26 | . 26 . Parts Recycled . | . . . Recycled Matter . | . . . Retrieved Matter . | . . . Retrieved Components . | . . . Parts Scanalyzed . | . . . Part Schematics Acquired . | . . . Parts Damaged . | . . . Bothacking | -11 -10 -10 ------------ Run | Yrd Mat Min Used RIF Installer . | . . . Robots Hacked . | . . . Non-combat . | . . . Combat . | . . . Robot Hacks Applied . | . . . Relay Couplers Released . | . . . Fabnet Peak Effective % . | . . . Robots Rewired . | . . . Allies Hacked . | . . . Hacks Repelled . | . . . Allies | -11 -10 -10 -------- Run | Yrd Mat Min Total Allies . | . . . Largest Group . | . . . Highest-Rated Group . | . . . Highest-Rated Ally . | . . . Total Orders . | . . . Ally Attacks . | . . . Total Damage . | . . . Kills . | . . . Allies Corrupted . | . . . Allies Melted . | . . . Intel | -11 -10 -10 ------- Run | Yrd Mat Min Robot Analysis Total . | . . . Derelict Logs Recovered . | . . . Drone Launches . | . . . Drone Recoveries . | . . . Exploration | -11 -10 -10 ------------- Run | Yrd Mat Min Turns Passed 518 | 62 261 195 Spaces Moved 316 | 53 144 119 Core 22 | 18 . 4 Treads . | . . . Legs 294 | 35 144 115 Wheels . | . . . Hover . | . . . Flight . | . . . Fastest Speed 50 | 50 120 100 Average Speed 116 | 96 120 121 Slowest Speed 200 | 120 120 200 Overloaded Moves . | . . . Propulsion Burnouts . | . . . Robots Hopped . | . . . Cave-ins Triggered . | . . . Exploration Rate (%) 18 | 4 30 20 Regions Visited 2 Branch Regions 1 Pre-discovered Areas . | . . . Known Exits Taken . | . . . Unknown Exits Taken 2 | 1 1 . Scrap Searched . | . . . Spaces Dug . | . . . Terrain Destroyed 148 | . 63 85 Melee . | . . . Projectile . | . . . AOE 148 | . 63 85 Terrain Rammed . | . . . Walls Destroyed . | . . . Machines Disabled . | . . . Actions | -11 -10 -10 --------- Run | Yrd Mat Min Total 401 | 64 195 142 Wait 20 | . 20 . Move 314 | 52 143 119 Hop . | . . . Pick Up 12 | 6 3 3 Fast Attach . | . . . Attach 11 | 6 2 3 Detach . | . . . Swap 1 | . 1 . Drop . | . . . Fire 40 | . 25 15 Melee . | . . . Ram 2 | . . 2 Kick 1 | . 1 . Crush . | . . . Escape Stasis . | . . . Rewire . | . . . Trap . | . . . Miscellaneous . | . . . Route ------- -11/Scrapyard -10/Materials -10/Mines History --------- Turn | Location | Event 6 | -11/Scrapyard | Discovered new exit (range 16) 63 | -11/Scrapyard | Entered Materials 174 | -10/Materials | Discovered new exit (range 16) 293 | -10/Materials | Repaired Grenade Launcher 321 | -10/Materials | Build established: Mutant 324 | -10/Materials | Entered Mines 325 | -10/Mines | Assembled infested the area 408 | -10/Mines | Destroyed 12 combat bots 499 | -10/Mines | Core integrity fell below 50% 516 | -10/Mines | Core integrity fell below 20% 519 | -10/Mines | Destroyed by D-53 Grenadier with Mini Grenade Launcher Last Messages --------------- T-07 Excavator destroyed. Grenade Launcher destroyed. Terrain Scanner destroyed. The unstable cave ceiling collapses. EM Pulse Gun destroyed. Lgt. Assault Rifle destroyed. The unstable cave ceiling collapses. K-01 Serf collects debris. The unstable cave ceiling collapses. K-01 Serf collects debris. The unstable cave ceiling collapses. Acquired Lgt. Assault Rifle. The unstable cave ceiling collapses. Lgt. Assault Rifle destroyed. Aluminum Leg destroyed. The unstable cave ceiling collapses. K-01 Serf collects debris. Ion Engine destroyed. K-01 Serf collects debris. Slammed into D-53 Grenadier. Map ----- +----------------------------------------------------+ | ?????????????????????????????????????????????????? | | ?????????????????????????????????????????????????? | | ?????????????????????????????????????????????????? | | ???#??####??????#????????????????????????????????? | | ?????## ##??????????????????????????????????????? | | ????## #?####?????????###?????????????????????? | | ????# #### ##??????## ##????????????????????? | | ????# ### ##????# ##???????????????????? | | ????# ##### ## #????????????????? | | ???## #????????????????? | | ??#?## #????????????????????? | | ?????### ### """ ###????????????????????? | | ???????## ##?## """ ##??????????????????????? | | ???????## #???## """ #???????????????????????? | | ?????### #???## #???????????????????????? | | ?????# #????## ##????????? ???????????? | | ?????# ##????## #######???? ??????????? | | ?????### ##????## # # ###? ?????????? | | ???????## ###### # ## k## ??????????? | | ????????### # ###??????????????? | | ??????????## # #??????????????? | | ???????????### ## # r #??????????????? | | ?????????????# ## ! # #??????????????? | | ???????#?????# # ## #??????????????? | | ??? ?????????# # #?#??????????????? | | ?????????????## @ #????????????????? | | ??????????????# d ####?#???#??????????? | | ??????????????# ##??????????????????? | | ??????????????# #??????????????????? | | ??????????????## # #??????????????????? | | ???????????????### ##?????#????????????? | | ???????????#????########## ###?????????????????? | | ???????????????????????#?### #???????????????????? | | ???????#?????#???#?????##### #???????????????????? | | ????????????????#??????# #???????????????????? | | ?????????#??#?????#????# #####???????????????????? | | ?????????????#?????????# #???????????????????????? | | ??????????????#???????## ###?#?????? ????????????? | | ?????????????????????## ##?##???????????????????? | | ????????????????????## #??????? ??????????????? | | ????????????# ####### #??????????????????????? | | ????????????# ##??????????????????????? | | ????????????# ###### ##???????????????????????? | | ???????????????????# ##????????????????????????? | | ???????????????????# ##?????????????????????????? | | ???????????????????# ??????????????????????????? | | ??????????????????? #??????????????????????????? | | ??????????????????#####??????????????????????????? | | ?????????????????????#???????????????????????????? | | ?????????????????????????????????????????????????? | +----------------------------------------------------+ Best States ------------- Heat Dissipation 25 Energy Generation 10 Energy Capacity 250 Matter Stores 300 Matter Capacity 300 Sight Range 16 Terrain Scan Range 14 Terrain Scan Density 10 Evasion (%) 55 Item Schematics ----------------- None Robot Schematics ------------------ None Fabricated ------------ Nothing Alien Tech Used ----------------- None Achievements -------------- None Challenges ------------ None Game ------ Seed PhysicsAccelerationSheargun Manual? 0 Play Time 00:10:34 Cumulative 1.7 hours Start 2024.04.02 @ 05:17:44 End 2024.04.02 @ 05:26:06 Sessions 1 Manual Loads 0 Difficulty Rogue Special Mode None Game No. 4 Rogue 4 Adventurer 0 Explorer 0 Win Type - Total 0 Types 0/0/0/0/0/0/0/0/0 Lore% 9 Gallery% 5 Achievement% 8 Wizard Run 0 Options --------- Layout 1 ASCII 0 Keyboard 0 Movement Arrows Keybinds 0 Fullscreen 1 Font 24/Smallcaps Map View 50x40 Zoom Use 0% Tactical HUD 0 Map Filters NONE Filters NONE Steam 1 RUN: e1886f0b-52bb-47de-b525-53b1fbfb2a40